bitfinex/quotes_BTCUSD_20250709
["timestamp","ask_amount","ask_price","bid_price","bid_amount"]
[1752039280895,0.3529576,108690.0,108680.0,0.49719172]
[1752039284398,0.34375763,108690.0,108680.0,0.48799091]
[1752039284640,0.34375763,108690.0,108680.0,0.49719181]
[1752039285188,0.52776719,108690.0,108680.0,0.48799125]
[1752039285878,0.34375763,108690.0,108680.0,0.48799125]
[1752039286163,0.33455716,108690.0,108680.0,0.49719206]
[1752039286571,0.33455716,108690.0,108680.0,0.48799125]
[1752039286795,0.33455716,108690.0,108680.0,0.49719223]
[1752039287000,0.34375763,108690.0,108680.0,0.50639313]
[1752039288569,0.03888729,108690.0,108680.0,0.50639313]
[1752039288771,0.02048643,108690.0,108680.0,0.82046428]
[1752039289126,0.02048601,108690.0,108680.0,0.82046369]
[1752039289451,0.02048601,108690.0,108680.0,0.83586369]
[1752039289641,0.01128588,108690.0,108680.0,0.83586369]
[1752039289856,0.01128588,108690.0,108680.0,0.84487944]
[1752039290832,0.01128588,108690.0,108680.0,0.5400091]
[1752039291038,0.01128588,108690.0,108680.0,0.86037944]
[1752039292653,0.02048593,108690.0,108680.0,0.84487944]
[1752039294167,0.02048593,108690.0,108680.0,0.82947944]
[1752039295391,0.01128588,108690.0,108680.0,0.94005896]
[1752039295808,0.0112858,108690.0,108680.0,0.94005896]
[1752039296012,0.01128571,108690.0,108680.0,0.97235896]
[1752039296345,0.002086,108690.0,108680.0,0.97235896]
[1752039296912,0.002086,108690.0,108680.0,1.2772293]
[1752039299455,0.002086,108690.0,108680.0,1.6172293]
[1752039301572,0.0010083,108700.0,108690.0,0.58280996]
[1752039301803,0.0010083,108700.0,108690.0,1.16820267]
[1752039302036,0.0010083,108700.0,108690.0,1.27878219]
[1752039302460,0.0010083,108700.0,108690.0,1.30642219]
[1752039304274,0.0010083,108700.0,108690.0,1.33422443]
[1752039305400,0.002,108710.0,108700.0,0.5827905]
[1752039305659,0.002,108710.0,108700.0,1.47314953]
[1752039306433,0.002,108710.0,108700.0,1.58325391]
[1752039307092,0.003,108710.0,108700.0,1.58325391]
[1752039307307,0.003,108710.0,108700.0,1.61089191]
[1752039308364,0.003,108710.0,108700.0,1.61189191]
[1752039310039,0.003,108710.0,108700.0,1.61185658]
[1752039313026,0.003,108710.0,108700.0,1.61184896]
[1752039313487,0.003,108710.0,108700.0,1.50174458]
[1752039320302,0.003,108710.0,108700.0,1.61184896]
[1752039324380,0.003,108710.0,108700.0,1.61186424]
[1752039327262,0.13540632,108730.0,108720.0,0.21155158]
[1752039327470,0.13587386,108730.0,108720.0,0.76061245]
[1752039328381,0.31981573,108730.0,108720.0,0.52909994]
[1752039328554,0.32281573,108730.0,108720.0,0.83397028]
[1752039329317,0.31981573,108730.0,108720.0,0.83397028]
[1752039329719,0.06215813,108730.0,108720.0,0.85236522]
[1752039329924,0.06215813,108730.0,108720.0,0.86156256]
[1752039330692,0.05396113,108730.0,108720.0,0.80652578]
[1752039331107,0.05396062,108730.0,108720.0,0.80652578]
[1752039331396,0.06515745,108730.0,108720.0,0.80652578]
[1752039331965,0.07435437,108730.0,108720.0,0.80652578]
[1752039332643,0.07235437,108730.0,108720.0,0.80656578]
[1752039332838,0.07435437,108730.0,108720.0,0.80656578]
[1752039333044,0.06515745,108730.0,108720.0,0.80656578]
[1752039333215,0.05596062,108730.0,108720.0,0.80656578]
[1752039333616,0.07435437,108730.0,108720.0,0.50169544]
[1752039333979,0.06515745,108730.0,108720.0,0.80656578]
[1752039334183,0.06515737,108730.0,108720.0,0.81566155]
[1752039334548,0.06515737,108730.0,108720.0,0.73310638]
[1752039334754,0.07435429,108730.0,108720.0,0.42823604]
[1752039335105,0.07435429,108730.0,108720.0,0.73310638]
[1752039335494,0.06515737,108730.0,108720.0,0.73310638]
[1752039335707,0.06515737,108730.0,108720.0,0.42823604]
[1752039335966,0.06515737,108730.0,108720.0,0.73310638]
[1752039337820,0.07435429,108730.0,108720.0,0.73310638]
[1752039338451,0.08355138,108730.0,108720.0,0.49266657]
[1752039338666,0.08355138,108730.0,108720.0,0.79753691]
[1752039339301,0.08155138,108730.0,108720.0,0.79753691]
[1752039341177,0.07135429,108730.0,108720.0,0.80673425]
[1752039341365,0.07135429,108730.0,108720.0,0.80773425]
[1752039342406,0.07135429,108730.0,108720.0,0.50286391]
[1752039342581,0.07135429,108730.0,108720.0,0.80773425]
[1752039343654,0.06215737,108730.0,108720.0,0.80773425]
[1752039343957,0.0713542,108730.0,108720.0,0.80773425]
[1752039344473,0.0713542,108730.0,108720.0,0.50286391]
[1752039344684,0.0713542,108730.0,108720.0,0.80773425]
[1752039345039,0.06215737,108730.0,108720.0,0.80773425]
[1752039346659,0.08055129,108730.0,108720.0,0.35478657]
[1752039346886,0.08055129,108730.0,108720.0,0.79849691]
[1752039347304,0.08055129,108730.0,108720.0,0.49362657]
[1752039347723,0.08055129,108730.0,108720.0,0.50282391]
[1752039348874,0.08055112,108730.0,108720.0,0.50282391]
[1752039349976,0.08055112,108730.0,108720.0,0.80769425]
[1752039350181,0.08055213,108730.0,108720.0,0.80770313]
[1752039350794,0.06215804,108730.0,108720.0,0.80770313]
[1752039352111,0.49408482,108740.0,108730.0,0.55153212]
[1752039352112,0.0051911,108740.0,108730.0,0.55153212]
[1752039352321,0.0024,108750.0,108740.0,0.55151266]
[1752039352528,0.0024,108750.0,108740.0,1.66350613]
[1752039352768,0.0024,108750.0,108740.0,1.38612694]
[1752039352963,0.0024,108750.0,108740.0,1.71862628]
[1752039353754,0.01159464,108750.0,108740.0,1.71862628]
[1752039354500,0.01159464,108750.0,108740.0,1.6105219]
[1752039354621,0.05298936,108750.0,108740.0,0.99158557]
[1752039354857,0.07137923,108750.0,108740.0,1.36973232]
[1752039355061,0.07137923,108750.0,108740.0,1.37173232]
[1752039355272,0.08057454,108750.0,108740.0,1.05766633]
[1752039355478,0.08057454,108750.0,108740.0,1.37173249]
[1752039355730,0.08057446,108750.0,108740.0,1.38092814]
[1752039355939,0.03164482,108770.0,108760.0,0.0325]
[1752039356152,0.24128659,108810.0,108760.0,0.04358264]
[1752039356153,0.0073911,108810.0,108760.0,0.04358264]
[1752039356373,0.08516029,108820.0,108760.0,0.04358264]
[1752039356374,0.0054511,108840.0,108810.0,0.02756997]
[1752039356586,0.04626429,108860.0,108850.0,0.40411372]
[1752039356802,0.04626429,108860.0,108850.0,1.21377026]
[1752039356803,0.01404474,108860.0,108850.0,1.21377026]
[1752039357019,0.00644279,108870.0,108860.0,0.56582036]
[1752039357213,0.00644279,108870.0,108860.0,0.94660911]
[1752039357452,0.00644279,108870.0,108860.0,0.65725729]
[1752039357662,0.00491082,108870.0,108860.0,1.11114996]
[1752039357875,0.0051911,108880.0,108870.0,0.22580095]
[1752039358079,0.0051911,108880.0,108870.0,0.92502322]
[1752039358301,0.00533137,108880.0,108870.0,0.31723788]
[1752039358552,0.00533137,108880.0,108870.0,0.94209197]
[1752039358715,0.02954913,108890.0,108880.0,0.20741348]
[1752039358967,0.04391152,108890.0,108880.0,0.20609293]
[1752039359176,0.03472803,108890.0,108880.0,0.36419566]
[1752039359405,0.20921722,108890.0,108880.0,0.54330721]
[1752039359618,0.01636214,108890.0,108880.0,0.20330721]
[1752039359820,0.02554512,108890.0,108880.0,0.20330721]
[1752039360039,0.51311005,108890.0,108880.0,0.20330721]
[1752039360326,0.51311005,108890.0,108880.0,0.18876636]
[1752039360525,0.23951738,108890.0,108880.0,0.14759776]
[1752039360757,0.86482378,108890.0,108880.0,0.05616083]
[1752039360995,0.87825618,108890.0,108880.0,0.04163009]
[1752039361224,0.88125618,108890.0,108880.0,0.0320999]
[1752039361451,0.56453111,108890.0,108880.0,0.0320999]
[1752039361682,0.88125618,108890.0,108880.0,0.0229081]
[1752039361912,0.22437271,108880.0,108870.0,0.0411686]
[1752039362145,0.56773271,108880.0,108870.0,0.0411686]
[1752039362359,0.95792979,108880.0,108870.0,0.0411686]
[1752039362592,0.22399042,108870.0,108860.0,0.05489146]
[1752039362801,0.20900815,108860.0,108850.0,0.13722866]
[1752039363002,0.54183322,108860.0,108850.0,0.14057055]
[1752039363206,0.54183322,108860.0,108850.0,0.05535949]
[1752039363623,0.54183322,108860.0,108850.0,0.08280523]
[1752039364048,0.22510815,108860.0,108850.0,0.08280523]
[1752039364249,0.54183322,108860.0,108850.0,0.00046803]
[1752039364381,0.54183322,108860.0,108850.0,0.00146803]
[1752039364585,0.22510815,108860.0,108850.0,0.11125096]
[1752039364791,0.19290815,108860.0,108850.0,0.11125096]
[1752039365410,0.19290815,108860.0,108850.0,0.00146803]
[1752039366283,0.19290815,108860.0,108850.0,0.3171931]
[1752039366556,0.00918585,108860.0,108850.0,0.51841296]
[1752039366770,0.34542429,108860.0,108850.0,0.7205257]
[1752039366984,0.37298126,108860.0,108850.0,0.41298716]
[1752039367212,0.37498126,108860.0,108850.0,0.41398724]
[1752039367431,0.37498202,108860.0,108850.0,0.41398724]
[1752039367617,0.37498202,108860.0,108850.0,0.7215257]
[1752039367866,0.54951812,108860.0,108850.0,0.22106162]
[1752039368079,0.36579591,108860.0,108850.0,0.40480071]
[1752039368294,0.02037128,108860.0,108850.0,0.77668745]
[1752039368476,0.02955722,108860.0,108850.0,0.65771816]
[1752039368715,0.02955722,108860.0,108850.0,0.6669046]
[1752039368927,0.02955713,108860.0,108850.0,0.66690401]
[1752039369355,0.02037095,108860.0,108850.0,0.66690401]
[1752039369572,0.03874274,108860.0,108850.0,0.71115147]
[1752039369793,0.0387424,108860.0,108850.0,0.6393446]
[1752039370060,0.02755646,108860.0,108850.0,0.72952022]
[1752039370482,0.04592842,108860.0,108850.0,0.73052039]
[1752039370692,0.04592892,108860.0,108850.0,0.73970675]
[1752039370911,0.0367429,108860.0,108850.0,0.73052039]
[1752039371127,0.00918543,108860.0,108850.0,0.72133386]
[1752039371338,0.00918543,108860.0,108850.0,0.73052022]
[1752039371339,0.03674265,108860.0,108850.0,0.73052022]
[1752039371551,0.02755671,108860.0,108850.0,0.90012022]
[1752039371763,0.00918492,108870.0,108860.0,0.21127951]
[1752039371986,0.20625936,108870.0,108860.0,0.7452204]
[1752039372200,0.02755469,108870.0,108860.0,0.70041912]
[1752039372419,0.04592513,108870.0,108860.0,0.7096048]
[1752039372631,0.04592513,108870.0,108860.0,0.71878989]
[1752039372632,0.01836968,108870.0,108860.0,0.71878989]
[1752039372844,0.02755418,108870.0,108860.0,0.71878989]
[1752039373057,0.0091845,108870.0,108860.0,0.71878989]
[1752039373269,0.03673894,108870.0,108860.0,0.73566795]
[1752039373483,0.04592377,108870.0,108860.0,0.73566795]
[1752039373704,0.03673868,108870.0,108860.0,0.65469077]
[1752039373924,0.04592377,108870.0,108860.0,0.77440554]
[1752039374136,0.03673868,108870.0,108860.0,0.77440554]
[1752039374348,0.04592377,108870.0,108860.0,0.77440554]
[1752039374563,0.03673868,108870.0,108860.0,0.69341672]
[1752039374772,0.03673911,108870.0,108860.0,0.68423121]
[1752039374996,0.03673936,108870.0,108860.0,0.68423112]
[1752039375214,0.03673936,108870.0,108860.0,0.67790142]
[1752039375433,0.00918484,108870.0,108860.0,0.36117635]
[1752039375650,0.01836976,108870.0,108860.0,0.66302187]
[1752039375887,0.04592428,108870.0,108860.0,0.64465076]
[1752039376119,0.04592428,108870.0,108860.0,0.66302187]
[1752039376391,0.00918467,108870.0,108860.0,0.66302187]
[1752039376609,0.01836749,108880.0,108870.0,0.21125985]
[1752039376832,0.0963306,108890.0,108870.0,0.98881745]
[1752039377057,0.00918366,108880.0,108870.0,0.58984012]
[1752039377283,0.03673582,108880.0,108870.0,0.99800221]
[1752039377523,0.03673582,108880.0,108870.0,1.02559829]
[1752039377739,0.02755157,108880.0,108870.0,1.02559829]
[1752039377957,0.03673574,108880.0,108870.0,1.03478296]
[1752039378166,0.04592007,108880.0,108870.0,1.01641345]
[1752039378380,0.03673574,108880.0,108870.0,1.02559829]
[1752039378605,0.01118315,108890.0,108880.0,0.20205704]
[1752039378830,0.02754937,108890.0,108880.0,0.29349397]
[1752039379042,0.03673286,108890.0,108880.0,0.28430981]
[1752039379252,0.03673286,108890.0,108880.0,0.27512539]
[1752039379471,0.03673278,108890.0,108880.0,0.60103471]
[1752039379682,0.01836597,108890.0,108880.0,0.60103488]
[1752039379896,0.02754912,108890.0,108880.0,0.28430981]
[1752039380132,0.03673227,108890.0,108880.0,0.59185046]
[1752039380345,0.02754895,108890.0,108880.0,0.60103471]
[1752039380554,0.0091829,108890.0,108880.0,0.61021887]
[1752039380767,0.02036302,108910.0,108890.0,0.21122189]
[1752039380975,0.01118113,108910.0,108900.0,0.5941124]
[1752039381187,0.02954398,108910.0,108900.0,0.27509165]
[1752039381483,0.02036243,108910.0,108900.0,0.59181672]
[1752039381713,0.002,108910.0,108900.0,0.64695299]
[1752039381934,0.02036243,108910.0,108900.0,0.63777076]
[1752039382148,0.002,108910.0,108900.0,0.64695308]
[1752039382352,0.002,108910.0,108900.0,0.66149401]
[1752039382561,0.003,108910.0,108900.0,0.66149401]
[1752039382782,0.003,108910.0,108900.0,0.67067615]
[1752039382982,0.002,108910.0,108900.0,0.67067615]
[1752039383101,0.002,108910.0,108900.0,0.6561353]
[1752039383308,0.003,108910.0,108900.0,0.6561353]
[1752039383712,0.003,108910.0,108900.0,0.67067615]
[1752039384135,0.002,108910.0,108900.0,0.67067615]
[1752039384333,0.03353731,108920.0,108910.0,0.18363786]
[1752039384587,0.01531552,108920.0,108910.0,0.64479831]
[1752039384781,0.0065371,108920.0,108910.0,1.06846829]
[1752039385627,0.01117944,108930.0,108920.0,0.19280196]
[1752039385850,0.26937375,108950.0,108920.0,0.67817545]
[1752039386060,0.01835905,108930.0,108920.0,0.56455637]
[1752039386269,0.34531206,108940.0,108920.0,0.14110638]
[1752039386445,0.18495999,108930.0,108920.0,0.17069138]
[1752039386640,0.37774433,108930.0,108920.0,0.17069138]
[1752039386862,0.16871575,108940.0,108920.0,0.8724132]
[1752039387061,0.17553885,108940.0,108930.0,0.32590527]
[1752039387288,0.20323566,108940.0,108930.0,0.42446806]
[1752039387493,0.18487745,108940.0,108930.0,0.83263038]
[1752039387701,0.03671626,108940.0,108930.0,0.33230117]
[1752039388032,0.19405741,108940.0,108930.0,0.14110638]
[1752039388232,0.36846576,108940.0,108930.0,0.14110638]
[1752039388474,0.36846576,108940.0,108930.0,0.04966945]
[1752039389369,0.36830576,108940.0,108930.0,0.15884613]
[1752039389799,0.36830576,108940.0,108930.0,0.04966945]
[1752039390014,0.18471847,108940.0,108930.0,0.04966945]
[1752039390229,0.36830576,108940.0,108930.0,0.04966945]
[1752039390660,0.35912657,108940.0,108930.0,0.04973653]
[1752039391555,0.0091786,108940.0,108930.0,0.33625285]
[1752039391777,0.02753639,108940.0,108930.0,0.64150267]
[1752039391999,0.3769647,108940.0,108930.0,0.14117346]
[1752039392221,0.36778576,108940.0,108930.0,0.14117346]
[1752039392675,0.21112512,108940.0,108930.0,0.14117346]
[1752039392922,0.36762593,108940.0,108930.0,0.14117346]
[1752039394203,0.36762593,108940.0,108930.0,0.14116249]
[1752039394418,0.1013282,108940.0,108930.0,0.32476663]
[1752039394633,0.0091786,108940.0,108930.0,0.35230665]
[1752039394854,0.16528,108940.0,108930.0,0.66903172]
[1752039395073,0.16528,108940.0,108930.0,0.78738801]
[1752039395294,0.01835577,108950.0,108940.0,0.18358729]
[1752039395540,0.21101064,108950.0,108940.0,0.46018899]
[1752039395759,0.22028383,108950.0,108940.0,0.45789415]
[1752039395974,0.22028383,108950.0,108940.0,0.48547315]
[1752039395975,0.38532383,108950.0,108940.0,0.48547315]
[1752039396705,0.36696739,108950.0,108940.0,0.16874808]
[1752039396935,0.35594031,108950.0,108940.0,0.27792476]
[1752039397157,0.06683943,108950.0,108940.0,0.16874808]
[1752039397400,0.23167943,108950.0,108940.0,0.07731115]
[1752039397640,0.58681666,108950.0,108940.0,0.15890883]
[1752039397847,0.67825359,108950.0,108940.0,0.13152152]
[1752039398064,0.36152852,108950.0,108940.0,0.13152152]
[1752039398279,0.67825359,108950.0,108940.0,0.13152152]
[1752039398707,0.36152852,108950.0,108940.0,0.13152152]
[1752039399821,0.36152852,108950.0,108940.0,0.04973215]
[1752039401221,0.36352852,108950.0,108940.0,0.04973215]
[1752039401432,0.68025359,108950.0,108940.0,0.04973215]
[1752039401646,0.68225359,108950.0,108940.0,0.04973215]
[1752039403552,0.36552852,108950.0,108940.0,0.04973215]
[1752039405036,0.36552852,108950.0,108940.0,0.15890883]
[1752039405250,0.36552852,108950.0,108940.0,0.04973215]
[1752039405459,0.39847254,108950.0,108940.0,0.01705708]
[1752039405679,0.02754221,108920.0,108910.0,0.11526828]
[1752039405894,0.2764203,108930.0,108920.0,0.19280205]
[1752039406085,0.50667589,108930.0,108920.0,0.66221046]
[1752039406292,0.48831608,108930.0,108920.0,0.686691]
[1752039406516,0.31577655,108930.0,108920.0,0.69587146]
[1752039406712,0.31577655,108930.0,108920.0,0.66828646]
[1752039406925,0.32495608,108930.0,108920.0,0.57179653]
[1752039407097,0.31577655,108930.0,108920.0,0.57179653]
[1752039407303,0.32495599,108930.0,108920.0,0.57179653]
[1752039407712,0.33413569,108930.0,108920.0,0.54425491]
[1752039407952,0.34331564,108930.0,108920.0,0.55343553]
[1752039408197,0.35249576,108930.0,108920.0,0.55443553]
[1752039408375,0.35249576,108930.0,108920.0,0.52685153]
[1752039408537,0.35249576,108930.0,108920.0,0.220307]
[1752039408745,0.35249576,108930.0,108920.0,0.21112646]
[1752039409345,0.31038525,108930.0,108920.0,0.53703207]
[1752039409545,0.026785,108930.0,108920.0,0.54621253]
[1752039409920,0.0176053,108930.0,108920.0,0.70897253]
[1752039410123,0.00842586,108930.0,108920.0,0.70897253]
[1752039410255,0.00842586,108930.0,108920.0,0.70873253]
[1752039410463,0.0176053,108930.0,108920.0,0.70873253]
[1752039410726,0.13313192,108930.0,108920.0,0.70873253]
[1752039411052,0.10564435,108930.0,108920.0,0.70873253]
[1752039411489,0.05981203,108930.0,108920.0,0.70873253]
[1752039411705,0.14233105,108930.0,108920.0,0.70873253]
[1752039411903,0.14233105,108930.0,108920.0,0.70845253]
[1752039412124,0.123972,108930.0,108920.0,0.70845253]
[1752039412496,0.09649992,108930.0,108920.0,0.70845253]
[1752039412701,0.04145298,108930.0,108920.0,0.70845253]
[1752039413949,0.0350076,108930.0,108920.0,0.70845253]
[1752039414125,0.04146057,108930.0,108920.0,0.70845253]
[1752039414460,0.04146163,108930.0,108920.0,0.70845253]
[1752039416610,0.00845403,108930.0,108920.0,0.70845253]
[1752039417018,0.06972386,108940.0,108930.0,0.20196395]
[1752039417214,0.06972386,108940.0,108930.0,0.62532595]
[1752039417424,0.06972386,108940.0,108930.0,0.64245185]
[1752039417604,0.06972386,108940.0,108930.0,0.65163155]
[1752039417807,0.06972377,108940.0,108930.0,0.68191116]
[1752039418273,0.07072377,108940.0,108930.0,0.68191116]
[1752039418450,0.07172377,108940.0,108930.0,0.36518609]
[1752039418682,0.07172377,108940.0,108930.0,0.68191116]
[1752039419123,0.07172377,108940.0,108930.0,0.66478526]
[1752039419354,0.07172377,108940.0,108930.0,0.32970097]
[1752039419566,0.07172377,108940.0,108930.0,0.65560565]
[1752039419776,0.07172377,108940.0,108930.0,0.66478543]
[1752039419990,0.08090305,108940.0,108930.0,0.66478552]
[1752039420205,0.07172377,108940.0,108930.0,0.67396513]
[1752039420421,0.08090305,108940.0,108930.0,0.66478552]
[1752039420660,0.08090305,108940.0,108930.0,0.67396513]
[1752039420842,0.08090305,108940.0,108930.0,0.66084957]
[1752039421074,0.12218876,108940.0,108930.0,0.65166996]
[1752039421288,0.12218876,108940.0,108930.0,0.64249026]
[1752039421500,0.28741792,108940.0,108930.0,0.62413061]
[1752039421713,0.27823873,108940.0,108930.0,0.63331056]
[1752039422565,0.27823873,108940.0,108930.0,0.64249043]
[1752039422780,0.33328567,108940.0,108930.0,0.64249043]
[1752039423013,0.33328567,108940.0,108930.0,0.59701056]
[1752039423473,0.27393128,108940.0,108930.0,0.62973509]
[1752039423688,0.23301047,108940.0,108930.0,0.62179147]
[1752039423895,0.05860212,108940.0,108930.0,0.63097117]
[1752039424260,0.06778148,108940.0,108930.0,0.62179147]
[1752039424461,0.25136877,108940.0,108930.0,0.60343182]
[1752039424637,0.30641571,108940.0,108930.0,0.60343182]
[1752039424834,0.30641571,108940.0,108930.0,0.30900218]
[1752039425068,0.29723669,108940.0,108930.0,0.29064236]
[1752039425219,0.29723669,108940.0,108930.0,0.60343165]
[1752039425423,0.24218975,108940.0,108930.0,0.59425187]
[1752039425628,0.23695975,108940.0,108930.0,0.60343174]
[1752039426046,0.23695975,108940.0,108930.0,0.60343182]
[1752039426657,0.23695975,108940.0,108930.0,0.59425187]
[1752039426861,0.22778047,108940.0,108930.0,0.59425187]
[1752039427556,0.22778047,108940.0,108930.0,0.60343182]
[1752039427806,0.22778047,108940.0,108930.0,0.29064236]
[1752039428019,0.22778047,108940.0,108930.0,0.59425187]
[1752039428256,0.21860111,108940.0,108930.0,0.29064253]
[1752039428587,0.21860111,108940.0,108930.0,0.00642126]
[1752039428809,0.25833423,108940.0,108930.0,0.16574126]
[1752039428997,0.20328729,108940.0,108930.0,0.16574126]
[1752039429204,0.20328729,108940.0,108930.0,0.16566126]
[1752039429429,0.20328729,108940.0,108930.0,0.00642126]
[1752039429640,0.174972,108940.0,108930.0,0.00642126]
[1752039430761,0.174972,108940.0,108930.0,0.31003077]
[1752039432161,0.174972,108940.0,108930.0,0.00642126]
[1752039432380,0.174972,108940.0,108930.0,0.31003077]
[1752039432867,0.174972,108940.0,108930.0,0.00642126]
[1752039433087,0.217372,108940.0,108930.0,0.00642126]
[1752039433296,0.174972,108940.0,108930.0,0.31003077]
[1752039433803,0.174972,108940.0,108930.0,0.49363491]
[1752039433952,0.01835847,108940.0,108930.0,0.50281503]
[1752039434163,0.02753732,108940.0,108930.0,0.51199506]
[1752039434546,0.20194576,108940.0,108930.0,0.50281503]
[1752039434789,0.20194576,108940.0,108930.0,0.50281511]
[1752039435193,0.20194576,108940.0,108930.0,0.51199523]
[1752039435394,0.20194576,108940.0,108930.0,0.61879837]
[1752039435615,0.20194576,108940.0,108930.0,0.70099315]
[1752039435815,0.19276665,108940.0,108930.0,0.37902332]
[1752039436035,0.19276665,108940.0,108930.0,0.29682854]
[1752039436236,0.19276665,108940.0,108930.0,0.29782854]
[1752039436455,0.19276665,108940.0,108930.0,0.60143805]
[1752039437298,0.19276665,108940.0,108930.0,0.69281303]
[1752039437541,0.19276665,108940.0,108930.0,0.71117302]
[1752039437786,0.01835847,108940.0,108930.0,0.7111731]
[1752039438039,0.02753732,108940.0,108930.0,0.7111731]
[1752039438292,0.02753732,108940.0,108930.0,0.72035297]
[1752039438573,0.02753732,108940.0,108930.0,0.72953275]
[1752039438821,0.02753732,108940.0,108930.0,0.72035297]
[1752039439055,0.03671651,108940.0,108930.0,0.82096968]
[1752039439271,0.03671643,108940.0,108930.0,0.81178948]
[1752039439483,0.0091786,108940.0,108930.0,0.76617215]
[1752039439686,0.01835745,108940.0,108930.0,0.80967215]
[1752039439919,0.02753639,108940.0,108930.0,0.80967215]
[1752039440131,0.03671558,108940.0,108930.0,0.80049254]
[1752039440537,0.03671558,108940.0,108930.0,0.80967215]
[1752039440753,0.02753639,108940.0,108930.0,0.50606264]
[1752039440979,0.0367155,108940.0,108930.0,0.80967215]
[1752039441212,0.0367155,108940.0,108930.0,1.10410137]
[1752039441213,0.01835729,108940.0,108930.0,1.10410137]
[1752039441419,0.02753623,108940.0,108930.0,1.10410137]
[1752039442270,0.02753614,108940.0,108930.0,1.10410137]
[1752039442809,0.03671508,108940.0,108930.0,1.10410137]
[1752039443237,0.03671508,108940.0,108930.0,1.02190659]
[1752039443444,0.02753614,108940.0,108930.0,1.02190659]
[1752039443615,0.01835729,108940.0,108930.0,1.02190659]
[1752039444037,0.02753614,108940.0,108930.0,1.02190659]
[1752039444424,0.01835729,108940.0,108930.0,1.02190659]
[1752039444766,0.0091786,108940.0,108930.0,1.02190659]
[1752039444966,0.02035645,108950.0,108940.0,0.24294559]
[1752039445192,0.02035594,108950.0,108940.0,0.89694943]
[1752039445386,0.0295342,108950.0,108940.0,0.88776236]
[1752039445648,0.0295342,108950.0,108940.0,0.89694113]
[1752039445797,0.0295342,108950.0,108940.0,0.88776236]
[1752039446069,0.0295342,108950.0,108940.0,0.83295197]
[1752039446269,0.0305342,108950.0,108940.0,0.83295197]
[1752039446689,0.003,108950.0,108940.0,1.14574025]
[1752039446908,0.003,108950.0,108940.0,0.48222246]
[1752039447114,0.003,108950.0,108940.0,0.85322846]
[1752039447333,0.002,108950.0,108940.0,0.80614846]
[1752039447548,0.002,108950.0,108940.0,0.85322846]
[1752039447762,0.04699088,108960.0,108950.0,0.19274879]
[1752039447965,0.22165308,108960.0,108950.0,0.46066909]
[1752039448176,0.21247557,108960.0,108950.0,0.18562172]
[1752039448381,0.23407557,108960.0,108950.0,0.24038596]
[1752039448595,0.21247557,108960.0,108950.0,0.24038596]
[1752039448798,0.21247557,108960.0,108950.0,0.18562172]
[1752039449401,0.21247557,108960.0,108950.0,0.24036297]
[1752039449626,0.21247557,108960.0,108950.0,0.24136297]
[1752039449966,0.01042145,108960.0,108950.0,0.66470767]
[1752039450076,0.01959845,108960.0,108950.0,0.76525547]
[1752039450282,0.00124411,108960.0,108950.0,1.21310196]
[1752039450479,0.00124411,108960.0,108950.0,1.17613223]
[1752039450665,0.00124411,108960.0,108950.0,1.34454724]
[1752039450873,0.00124411,108960.0,108950.0,1.45414028]
[1752039451067,0.002,108970.0,108960.0,0.55108561]
[1752039451327,0.002,108970.0,108960.0,1.54492938]
[1752039451876,0.002,108970.0,108960.0,1.46287565]
[1752039452080,0.002,108970.0,108960.0,1.76237565]
[1752039452287,0.0002,108980.0,108970.0,0.40526624]
[1752039452497,0.0002,108980.0,108970.0,1.43968352]
[1752039452698,0.10006,108990.0,108980.0,0.46978772]
[1752039452910,0.10006,108990.0,108980.0,1.44541799]
[1752039453264,0.10006,108990.0,108980.0,1.39081156]
[1752039453484,0.10006,108990.0,108980.0,1.29535876]
[1752039453703,0.10006,108990.0,108980.0,1.2134242]
[1752039453912,0.10006,108990.0,108980.0,1.24081156]
[1752039454115,0.10006,108990.0,108980.0,1.26894294]
[1752039455126,0.10006,108990.0,108980.0,1.31974294]
[1752039455764,0.10006,108990.0,108980.0,1.56274294]
[1752039456615,0.10006,108990.0,108980.0,1.56252049]
[1752039457054,0.10006,108990.0,108980.0,1.16478597]
[1752039457273,0.10006,108990.0,108980.0,1.48058593]
[1752039457503,0.10006,108990.0,108980.0,1.56216792]
[1752039457753,0.10006,108990.0,108980.0,1.48058593]
[1752039457965,0.10006,108990.0,108980.0,1.59017897]
[1752039458312,0.08903987,108990.0,108980.0,1.59017897]
[1752039458505,0.08903987,108990.0,108980.0,1.65471982]
[1752039460611,0.08903987,108990.0,108980.0,1.65451669]
[1752039461904,0.08903987,108990.0,108980.0,1.65451497]
[1752039462102,0.08903987,108990.0,108980.0,1.33871501]
[1752039462555,0.08903987,108990.0,108980.0,1.65442103]
[1752039462728,0.08903987,108990.0,108980.0,1.58960018]
[1752039462930,0.08903987,108990.0,108980.0,1.48000714]
[1752039463189,0.08897987,108990.0,108980.0,1.48000714]
[1752039463834,0.08897987,108990.0,108980.0,1.56141304]
[1752039464055,0.08897987,108990.0,108980.0,1.48000714]
[1752039465517,0.08897987,108990.0,108980.0,1.56140775]
[1752039466465,0.08897987,108990.0,108980.0,1.24560779]
[1752039466685,0.08897987,108990.0,108980.0,1.56140775]
[1752039467807,0.08897987,108990.0,108980.0,1.24560779]
[1752039468039,0.08897987,108990.0,108980.0,1.56140775]
[1752039468277,0.07795933,108990.0,108980.0,1.20124779]
[1752039468508,0.08713381,108990.0,108980.0,1.17311641]
[1752039468720,0.07795933,108990.0,108980.0,1.17311641]
[1752039468928,0.08713372,108990.0,108980.0,1.17311641]
[1752039469140,0.11465815,108990.0,108980.0,0.7775811]
[1752039469353,0.11465815,108990.0,108980.0,0.83311659]
[1752039469568,0.10548309,108990.0,108980.0,0.80958081]
[1752039469782,0.34126114,108990.0,108980.0,0.84672557]
[1752039470002,0.33208675,108990.0,108980.0,0.80040557]
[1752039470207,0.32291219,108990.0,108980.0,0.84672582]
[1752039470418,0.32291219,108990.0,108980.0,0.84673944]
[1752039470826,0.32291219,108990.0,108980.0,0.61591501]
[1752039471040,0.32291219,108990.0,108980.0,0.60673944]
[1752039471278,0.13940912,108990.0,108980.0,0.61591484]
[1752039471908,0.15775933,108990.0,108980.0,0.61591501]
[1752039472340,0.3412624,108990.0,108980.0,0.60673944]
[1752039472733,0.32291261,108990.0,108980.0,0.78206788]
[1752039472949,0.31373755,108990.0,108980.0,0.48986325]
[1752039473159,0.31373755,108990.0,108980.0,0.44362325]
[1752039473382,0.31373755,108990.0,108980.0,0.48982325]
[1752039473614,0.31373755,108990.0,108980.0,0.40288562]
[1752039473837,0.31373755,108990.0,108980.0,0.44904562]
[1752039474055,0.31373755,108990.0,108980.0,0.10908224]
[1752039474478,0.31373755,108990.0,108980.0,0.06292224]
[1752039474692,0.31373755,108990.0,108980.0,0.05992224]
[1752039474930,0.31373755,108990.0,108980.0,0.05792224]
[1752039475401,0.31373755,108990.0,108980.0,0.05992224]
[1752039475843,0.31373755,108990.0,108980.0,0.02736072]
[1752039476060,0.62953751,108990.0,108980.0,0.02740735]
[1752039476542,0.31373755,108990.0,108980.0,0.02740735]
[1752039478488,0.35973755,108990.0,108980.0,0.06013559]